bitfinex/quotes_SOLUSD_20250901
["timestamp","ask_amount","ask_price","bid_price","bid_amount"]
[1756729707166,0.1,200.58,200.55,43.50624294]
[1756729707380,0.1,200.58,200.55,47.79942522]
[1756729707577,0.1,200.58,200.55,42.81318228]
[1756729709598,0.1,200.58,200.55,39.22]
[1756729711708,0.1,200.58,200.55,0.7]
[1756729712011,0.1,200.58,200.49,152.2]
[1756729712012,3.59318228,200.56,200.49,152.2]
[1756729712216,3.59318228,200.54,200.49,155.09318228]
[1756729712398,3.59318228,200.54,200.5,0.7]
[1756729712597,3.59318228,200.52,200.49,113.0]
[1756729712907,3.59318228,200.51,200.48,0.12]
[1756729713103,3.59318228,200.5,200.48,0.12]
[1756729713810,13.59559401,200.48,200.45,9.0185064]
[1756729714119,13.59559401,200.46,200.44,3.59318228]
[1756729714412,3.35252565,200.45,200.43,3.59318228]
[1756729714614,3.35252565,200.44,200.43,3.59318228]
[1756729714790,3.35252565,200.44,200.4,14.992129]
[1756729715112,27.56516183,200.42,200.38,38.54]
[1756729715301,13.59559401,200.4,200.38,38.54]
[1756729715624,16.94811966,200.39,200.38,43.53051801]
[1756729715792,30.91768748,200.39,200.38,5.67051801]
[1756729715993,16.94811966,200.39,200.38,5.67051801]
[1756729716207,16.94811966,200.39,200.38,9.26370029]
[1756729718809,16.94811966,200.39,200.38,122.26370029]
[1756729719326,16.94811966,200.39,200.38,122.38370029]
[1756729719891,16.94811966,200.39,200.38,113.12]
[1756729720113,16.94811966,200.39,200.38,3.71318228]
[1756729721134,16.94811966,200.39,200.38,113.70370029]
[1756729721795,13.76681599,200.49,200.38,168.2931776]
[1756729721988,2.60240397,200.49,200.48,3.59318228]
[1756729722196,5.94894198,200.49,200.48,3.59318228]
[1756729722829,6.09110355,200.49,200.48,3.59318228]
[1756729723413,5.94894198,200.49,200.48,3.59318228]
[1756729723613,6.09110355,200.49,200.48,3.59318228]
[1756729723818,13.59559401,200.48,200.43,17.70111182]
[1756729723997,13.59559401,200.48,200.47,3.59318228]
[1756729724192,24.74910052,200.48,200.47,3.59318228]
[1756729724424,24.74910052,200.48,200.45,3.59318228]
[1756729724915,0.14216157,200.48,200.47,105.0]
[1756729726218,0.14216157,200.48,200.46,4.98839258]
[1756729727000,0.14216157,200.48,200.47,91.59318228]
[1756729727300,0.14216157,200.48,200.47,88.0]
[1756729728830,0.14216157,200.48,200.46,4.98839258]
[1756729729398,0.14216157,200.48,200.45,3.59318228]
[1756729729399,0.14216157,200.48,200.45,4.98871427]
[1756729729804,0.14216157,200.48,200.47,80.0]
[1756729730125,0.14216157,200.48,200.44,4.98899104]
[1756729730329,13.59559401,200.45,200.41,3.59318228]
[1756729730505,13.73775558,200.46,200.42,3.59318228]
[1756729730700,13.73775558,200.46,200.43,3.59318228]
[1756729730935,0.14216157,200.46,200.44,4.98902414]
[1756729731303,0.14216157,200.47,200.45,3.59318228]
[1756729731502,0.14216157,200.47,200.46,3.59318228]
[1756729731703,0.14216157,200.47,200.44,8.58220642]
[1756729732000,0.14216157,200.47,200.44,3.59318228]
[1756729733231,0.14216157,200.47,200.45,4.98877525]
[1756729733450,0.14216157,200.47,200.45,8.58195753]
[1756729733737,3.34589128,200.46,200.45,4.98877525]
[1756729734048,3.34589128,200.46,200.44,3.59318228]
[1756729734243,16.94148529,200.45,200.44,3.59318228]
[1756729734410,13.59559401,200.44,200.42,0.4989522]
[1756729734604,22.51843697,200.43,200.42,3.59318228]
[1756729734931,22.51843697,200.43,200.42,72.0]
[1756729735115,22.51843697,200.43,200.42,80.58270428]
[1756729735320,22.51843697,200.43,200.42,81.20270428]
[1756729735633,26.11161925,200.43,200.42,76.989522]
[1756729735827,20.53466757,200.43,200.42,76.989522]
[1756729737606,20.53466757,200.43,200.42,72.0]
[1756729737607,20.67682914,200.43,200.42,72.0]
[1756729737946,20.67682914,200.43,200.39,4.99026897]
[1756729737947,13.73775558,200.42,200.39,4.99026897]
[1756729738246,17.18877629,200.4,200.38,0.12]
[1756729738410,26.11398408,200.39,200.38,0.12]
[1756729738915,26.11398472,200.39,200.38,0.12]
[1756729739229,20.53466757,200.39,200.38,5.11051801]
[1756729739840,26.11461729,200.39,200.38,5.11051801]
[1756729740011,20.53466757,200.39,200.38,5.11051801]
[1756729740930,20.53466757,200.39,200.38,77.11051801]
[1756729741314,20.53466757,200.39,200.38,72.12]
[1756729742935,16.94148529,200.39,200.38,77.11051801]
[1756729743231,20.53466757,200.39,200.38,77.11051801]
[1756729743438,16.94148529,200.39,200.38,77.11051801]
[1756729743652,20.53466757,200.39,200.38,77.11051801]
[1756729743822,13.59559401,200.38,200.35,39.26]
[1756729744154,13.59559401,200.36,200.35,38.64]
[1756729744448,16.94148529,200.36,200.35,38.64]
[1756729744644,16.94148529,200.36,200.35,39.26]
[1756729744812,16.94148529,200.36,200.35,103.26]
[1756729745011,16.94148529,200.36,200.35,108.25126528]
[1756729746028,21.13157289,200.36,200.35,108.25126528]
[1756729747330,21.13157289,200.36,200.35,107.65126528]
[1756729748237,21.13157289,200.36,200.35,69.11126528]
[1756729748420,16.94148529,200.36,200.35,69.11126528]
[1756729748613,20.53466757,200.36,200.35,64.12]
[1756729749910,21.22466757,200.36,200.35,64.12]
[1756729750735,16.94148529,200.36,200.35,69.73126528]
[1756729750930,16.94148529,200.36,200.35,69.11126528]
[1756729751535,20.53466757,200.36,200.35,69.11126528]
[1756729751740,16.94148529,200.36,200.35,69.11126528]
[1756729752941,21.13367209,200.36,200.35,69.11126528]
[1756729753327,16.94148529,200.36,200.35,69.11126528]
[1756729753842,16.94148529,200.36,200.35,4.99126528]
[1756729754016,21.13441396,200.36,200.35,4.99126528]
[1756729754215,21.13441396,200.36,200.34,4.99151442]
[1756729754433,3.34589128,200.35,200.34,4.99151442]
[1756729754832,3.34589128,200.35,200.34,55.99151442]
[1756729755022,21.22466757,200.35,200.34,51.0]
[1756729755426,21.36682914,200.35,200.34,51.0]
[1756729755634,25.55975781,200.35,200.34,51.0]
[1756729757252,21.36682914,200.35,200.34,51.0]
[1756729757454,21.36682914,200.35,200.34,51.12]
[1756729757619,25.55975781,200.35,200.34,51.12]
[1756729757815,21.36682914,200.35,200.34,51.12]
[1756729758331,21.36682914,200.35,200.34,0.12]
[1756729759248,17.77364686,200.35,200.34,0.12]
[1756729759453,21.36682914,200.35,200.34,0.12]
[1756729761435,21.36682914,200.35,200.34,51.12]
[1756729762129,17.77364686,200.35,200.34,51.12]
[1756729762453,21.36682914,200.35,200.34,51.12]
[1756729762747,21.36682914,200.35,200.34,0.12]
[1756729762951,39.73775558,200.31,200.3,0.12]
[1756729763132,85.19682914,200.31,200.3,0.12]
[1756729763340,85.88682914,200.31,200.3,0.12]
[1756729763839,0.14216157,200.3,200.28,0.12]
[1756729764024,21.22466757,200.29,200.28,0.12]
[1756729764924,25.41451426,200.29,200.28,0.12]
[1756729765247,59.90682914,200.29,200.28,0.12]
[1756729765728,59.90682914,200.29,200.28,51.12]
[1756729765925,63.40538179,200.29,200.28,51.12]
[1756729766122,25.55538179,200.29,200.28,51.12]
[1756729766353,63.40538179,200.29,200.28,51.12]
[1756729766652,59.90682914,200.29,200.28,51.12]
[1756729768928,59.90682914,200.29,200.28,0.12]
[1756729769445,21.36682914,200.29,200.28,0.12]
[1756729769761,59.90682914,200.29,200.28,0.12]
[1756729770256,20.67682914,200.29,200.28,0.12]
[1756729770554,59.21682914,200.29,200.28,0.12]
[1756729771054,59.90682914,200.29,200.28,0.12]
[1756729771428,55.62364686,200.29,200.28,0.12]
[1756729771627,59.21682914,200.29,200.28,0.12]
[1756729771858,59.21682914,200.29,200.28,51.12]
[1756729772149,20.67682914,200.29,200.28,51.12]
[1756729772452,59.21682914,200.29,200.28,51.12]
[1756729772754,59.90682914,200.29,200.28,51.12]
[1756729776452,16.94148529,200.29,200.28,51.74]
[1756729776658,20.53466757,200.29,200.28,51.74]
[1756729776833,20.53466757,200.29,200.28,56.73300978]
[1756729777041,16.94369079,200.29,200.28,56.73300978]
[1756729777768,20.53687307,200.29,200.28,56.11300978]
[1756729778847,20.53687307,200.29,200.28,51.12]
[1756729779641,20.53687307,200.29,200.28,56.11300978]
[1756729779868,20.53687307,200.29,200.28,51.12]
[1756729781361,20.53687307,200.29,200.28,56.73300978]
[1756729781666,16.94369079,200.29,200.28,56.73300978]
[1756729782966,16.94369079,200.29,200.28,95.27300978]
[1756729783345,20.53687307,200.29,200.28,89.66]
[1756729783662,20.53687307,200.29,200.28,51.74]
[1756729784161,20.53687307,200.29,200.28,56.11300978]
[1756729784333,20.53687307,200.29,200.28,51.12]
[1756729784539,20.54461818,200.29,200.28,51.12]
[1756729785866,21.25461818,200.29,200.28,51.12]
[1756729787735,59.93677975,200.29,200.28,51.12]
[1756729788753,59.93677975,200.29,200.28,0.12]
[1756729788961,64.13158212,200.29,200.28,0.12]
[1756729789164,66.73630548,200.29,200.28,0.12]
[1756729789638,151.23093786,200.28,200.27,0.12]
[1756729789843,20.68677975,200.28,200.27,0.12]
[1756729790062,0.14216157,200.27,200.26,0.2]
[1756729790273,13.73775558,200.26,200.25,0.12]
[1756729790452,21.39677975,200.26,200.25,0.12]
[1756729791568,39.73775558,200.24,200.23,0.12]
[1756729791745,89.42328093,200.24,200.23,0.12]
[1756729791947,85.93677975,200.24,200.23,0.12]
[1756729792155,90.13343996,200.24,200.23,0.12]
[1756729792561,105.14432296,200.24,200.23,0.12]
[1756729792953,65.01625134,200.24,200.23,0.12]
[1756729793148,103.55625134,200.24,200.23,0.12]
[1756729796455,13.73775558,200.23,200.21,0.12]
[1756729796665,62.67780046,200.22,200.21,0.12]
[1756729796980,59.79461818,200.22,200.21,0.12]
[1756729797345,61.79606918,200.22,200.21,0.12]
[1756729799972,23.25606918,200.22,200.21,0.12]
[1756729800159,16.9514359,200.22,200.21,0.74]
[1756729800470,21.39677975,200.22,200.21,0.12]
[1756729800671,59.93677975,200.22,200.21,0.12]
[1756729801069,59.22677975,200.22,200.21,0.12]
[1756729803685,20.54461818,200.22,200.21,0.12]
[1756729804062,20.54461818,200.22,200.21,51.12]
[1756729807473,21.25461818,200.22,200.21,51.12]
[1756729808784,21.39677975,200.22,200.21,51.12]
[1756729808998,13.73775558,200.21,200.2,0.12]
[1756729809290,39.59559401,200.19,200.18,0.12]
[1756729809584,85.08461818,200.19,200.18,0.12]
[1756729809760,85.79461818,200.19,200.18,0.12]
[1756729810188,82.2014359,200.19,200.18,0.12]
[1756729810387,85.93677975,200.19,200.18,0.12]
[1756729810765,87.93853075,200.19,200.18,0.12]
[1756729810970,13.73775558,200.18,200.16,0.12]
[1756729811284,85.08461818,200.17,200.16,0.12]
[1756729811490,85.79461818,200.17,200.16,0.12]
[1756729811665,87.79656918,200.17,200.16,0.12]
[1756729811863,87.79656918,200.17,200.16,51.12]
[1756729812288,87.79656918,200.17,200.16,0.12]
[1756729813878,61.79656918,200.17,200.16,0.12]
[1756729814884,13.73775558,200.16,200.15,0.12]
[1756729815193,20.68677975,200.16,200.15,51.12]
[1756729815392,21.39677975,200.16,200.15,51.12]
[1756729816393,21.39677975,200.16,200.15,0.12]
[1756729816875,0.14216157,200.15,200.14,0.2]
[1756729817069,13.73775558,200.14,200.12,0.12]
[1756729817290,13.73775558,200.11,200.1,0.12]
[1756729817494,62.81996203,200.11,200.1,0.12]
[1756729817669,65.53251503,200.11,200.1,0.12]
[1756729819491,65.53251503,200.11,200.1,51.12]
[1756729820077,19.09615047,200.11,200.1,51.12]
[1756729820382,16.9514359,200.11,200.1,51.74]
[1756729820578,17.18877629,200.11,200.1,51.12]
[1756729820781,17.18877629,200.11,200.1,51.74]
[1756729821096,17.18877629,200.11,200.1,51.12]
[1756729821481,43.18877629,200.11,200.1,51.12]
[1756729822394,17.18877629,200.11,200.1,0.74]
[1756729822975,17.18877629,200.11,200.1,0.12]
[1756729823190,44.04093786,200.11,200.1,0.12]
[1756729823475,24.97528831,200.11,200.1,0.12]
[1756729825501,24.97528831,200.11,200.1,51.12]
[1756729827305,24.97528831,200.11,200.1,0.12]
[1756729827513,39.99519031,200.11,200.1,0.12]
[1756729827696,13.73775558,200.1,200.02,0.2]
[1756729827897,17.18877629,200.03,200.02,0.2]
[1756729828983,20.5315041,200.03,200.02,0.2]
[1756729830109,20.5315041,200.03,200.02,51.2]
[1756729832482,20.5315041,200.03,200.02,51.82]
[1756729833203,16.93832182,200.03,200.02,51.82]
[1756729833415,20.5315041,200.03,200.02,51.82]
[1756729835405,16.93832182,200.03,200.02,56.81950004]
[1756729835590,3.34272781,200.03,200.02,60.41268232]
[1756729835796,3.59318228,200.07,200.02,72.91143244]
[1756729836013,13.59559401,200.05,200.03,42.71310729]
[1756729836229,13.59559401,200.05,200.04,0.62]
[1756729836424,17.18877629,200.1,200.04,0.62]
[1756729836589,3.34207683,200.09,200.05,0.49987503]
[1756729836917,3.34207683,200.08,200.06,39.26]
[1756729837113,13.59559401,200.08,200.07,1.11982506]
[1756729837527,13.59559401,200.08,200.07,6.11807567]
[1756729839121,13.59559401,200.08,200.07,57.11807567]
[1756729839306,3.62318228,200.12,200.07,57.11807567]
[1756729839509,16.93846564,200.11,200.08,0.62]
[1756729839693,13.59559401,200.11,200.09,5.61775101]
[1756729839897,0.03,200.12,200.1,0.62]
[1756729840125,3.34287048,200.11,200.09,44.11752611]
[1756729840318,0.03,200.12,200.09,44.11752611]
[1756729840636,3.34344244,200.11,200.1,0.62]
[1756729840822,16.93903645,200.11,200.1,0.62]
[1756729841723,16.93903645,200.11,200.1,5.61750124]
[1756729842112,3.34344244,200.11,200.1,5.61750124]
[1756729842612,3.34344244,200.11,200.1,56.61750124]
[1756729842794,21.20221873,200.11,200.1,51.0]
[1756729846325,20.53221873,200.11,200.1,55.99750124]
[1756729846821,20.53221873,200.11,200.1,51.0]
[1756729847807,16.93903645,200.11,200.1,51.0]
[1756729848000,21.20221873,200.11,200.1,51.0]
[1756729848406,21.23221873,200.11,200.1,51.0]
[1756729849531,13.73775558,200.1,200.03,4.99925011]
[1756729849733,17.18877629,200.05,200.04,38.62]
[1756729849938,17.18877629,200.05,200.04,43.61900019]
[1756729850639,20.54121672,200.05,200.04,43.61900019]
[1756729850818,17.18877629,200.05,200.04,38.62]
[1756729851004,20.54121672,200.05,200.02,5.19943155]
[1756729851326,3.59318228,200.04,200.03,38.6]
[1756729852108,4.26318228,200.04,200.03,38.6]
[1756729852325,13.59559401,200.03,200.02,5.19943155]
[1756729852519,17.85877629,200.03,200.02,89.8]
[1756729852731,17.85877629,200.03,200.02,51.2]
[1756729852921,21.21462996,200.03,200.02,51.2]
[1756729854207,20.54462996,200.03,200.02,51.2]
[1756729855718,21.21462996,200.03,200.02,51.2]
[1756729857228,21.35679153,200.03,200.02,51.2]
[1756729858616,21.35679153,200.03,200.02,0.2]
[1756729861538,21.35679153,200.03,200.02,51.2]
[1756729862943,20.68679153,200.03,200.02,51.2]
[1756729863433,21.35679153,200.03,200.02,51.2]
[1756729864849,21.35679153,200.03,200.02,0.2]
[1756729865342,20.68679153,200.03,200.02,0.2]
[1756729865547,21.34679153,200.03,200.02,0.2]
[1756729865919,20.68679153,200.03,200.02,0.2]
[1756729866551,21.34679153,200.03,200.02,0.2]
[1756729867925,21.34679153,200.03,200.02,51.2]
[1756729870253,0.14216157,200.02,199.99,0.12]
[1756729870428,20.78195857,200.0,199.99,0.12]
[1756729870627,24.13781224,200.0,199.99,0.12]
[1756729871248,24.79781224,200.0,199.99,0.12]
[1756729871960,50.93997381,200.0,199.99,0.12]
[1756729872332,50.93997381,200.0,199.97,0.12]
[1756729872536,43.33093786,199.98,199.97,0.12]
[1756729872750,46.68679153,199.98,199.97,0.12]
[1756729872941,47.34679153,199.98,199.97,0.12]
[1756729873936,85.92679153,199.98,199.97,0.12]
[1756729874138,0.14216157,199.96,199.91,0.62]
[1756729874343,17.18877629,199.92,199.91,0.62]
[1756729875138,17.18877629,199.92,199.87,38.66]
[1756729875344,3.59318228,199.9,199.89,0.82]
[1756729875741,17.18877629,199.9,199.89,0.2]
[1756729876257,20.78195857,199.9,199.89,0.2]
[1756729876646,17.18877629,199.9,199.89,0.2]
[1756729877462,21.58412014,199.9,199.89,0.2]
[1756729878835,17.99093786,199.9,199.89,0.2]
[1756729879350,21.58412014,199.9,199.89,0.2]
[1756729879953,17.18877629,199.9,199.89,0.2]
[1756729880137,17.18877629,199.9,199.89,0.82]
[1756729880867,17.18877629,199.9,199.89,0.2]
[1756729881171,17.18877629,199.9,199.89,5.20275151]
[1756729881338,17.18877629,199.9,199.89,5.82275151]
[1756729881537,13.59559401,199.9,199.89,5.82275151]
[1756729881735,12.508543,199.98,199.89,48.55620894]
[1756729881960,3.59318228,199.96,199.9,0.62]
[1756729882155,3.59318228,199.95,199.9,4.21318228]
[1756729882347,3.59318228,199.95,199.91,0.62]
[1756729882645,3.59318228,199.94,199.92,0.62]
[1756729883250,3.59318228,199.93,199.92,0.62]
[1756729883468,3.59318228,199.93,199.92,5.6220008]
[1756729885452,13.59559401,199.92,199.9,5.62250125]
[1756729885778,13.59559401,199.92,199.9,5.00250125]
[1756729885779,3.59318228,199.91,199.9,5.00250125]
[1756729886068,3.59318228,199.91,199.9,5.62250125]
[1756729886245,3.59318228,199.93,199.9,5.62250125]
[1756729886446,39.59559401,199.96,199.91,0.62]
[1756729886674,3.59318228,199.93,199.9,5.00250125]
[1756729886861,3.59318228,199.92,199.9,5.00250125]
[1756729887175,13.59559401,199.9,199.89,0.2]
[1756729887343,17.18877629,199.9,199.89,0.2]
[1756729889054,17.18877629,199.9,199.89,5.20275151]
[1756729890050,13.59559401,199.9,199.89,5.20275151]
[1756729890250,17.18877629,199.9,199.89,5.20275151]
[1756729890463,14.86871802,199.97,199.89,9.41593379]
[1756729890464,13.59559401,199.95,199.89,9.41593379]
[1756729890669,3.59318228,199.94,199.9,0.62]
[1756729890974,3.59318228,199.93,199.9,0.62]
[1756729891546,3.59318228,199.93,199.91,0.62]
[1756729891769,13.59559401,199.93,199.92,5.0020008]
[1756729891972,0.03,199.97,199.92,18.1270028]
[1756729892150,13.62559401,199.97,199.93,4.71335734]
[1756729892350,13.62559401,199.97,199.94,0.62]
[1756729892852,13.62559401,199.97,199.93,4.09335734]
[1756729893057,13.62559401,199.97,199.95,1.12012503]
[1756729893660,13.62559401,199.97,199.96,5.0010002]
[1756729895073,0.03,199.97,199.96,5.0010002]
[1756729896075,0.03,199.97,199.95,5.00125031]
[1756729896544,0.03,199.97,199.95,5.50137534]
[1756729897975,0.03,199.97,199.95,6.12137534]
[1756729898179,0.03,199.97,199.96,0.62]
[1756729898557,0.03,199.97,199.96,4.21318228]
[1756729899063,0.03,199.97,199.96,39.26]
[1756729900073,0.00729447,199.97,199.96,39.26]
[1756729900972,0.00729447,199.97,199.96,43.6410002]
[1756729901556,0.00729447,199.97,199.96,5.6210002]
[1756729901754,0.00729447,199.97,199.96,5.0010002]
[1756729902065,0.70729447,199.97,199.96,43.6210002]
[1756729902258,0.70729447,199.97,199.96,44.12110022]
[1756729902465,0.00729447,199.97,199.96,44.12110022]
[1756729902961,0.00729447,199.97,199.96,47.7142825]
[1756729903162,3.59318228,200.08,199.99,46.0]
[1756729903363,3.35887474,200.07,200.04,3.59318228]
[1756729903561,0.03,200.09,200.05,43.39305731]
[1756729903879,3.35768232,200.08,200.06,42.37898559]
[1756729904051,0.03,200.09,200.07,4.19881065]
[1756729904256,0.03,200.09,200.08,3.69898559]
[1756729904451,6.97879778,200.09,200.08,3.69898559]
[1756729904869,7.67879778,200.09,200.08,3.69898559]
[1756729905065,7.82095935,200.09,200.08,3.69898559]
[1756729905462,7.82095935,200.09,200.08,2.97898559]
[1756729905859,7.82095935,200.09,199.98,13.64]
[1756729905860,0.14216157,200.04,199.98,13.64]
[1756729906073,3.59318228,200.0,199.96,5.0010002]
[1756729906263,3.59318228,199.97,199.96,5.0010002]
[1756729906662,3.59318228,199.98,199.96,5.0010002]
[1756729907268,3.59318228,199.98,199.95,0.12]
[1756729907468,3.59318228,199.98,199.95,5.12114528]
[1756729907675,17.18877629,199.96,199.95,0.12]
[1756729907988,17.88877629,199.96,199.95,0.12]
[1756729910086,18.03093786,199.96,199.95,0.12]
[1756729910871,0.58312402,199.99,199.95,0.12]
[1756729910872,0.7,199.99,199.95,0.12]
[1756729911179,20.54658067,199.98,199.95,0.12]
[1756729911359,17.18877629,199.98,199.95,0.12]
[1756729912173,17.18877629,199.98,199.95,5.12118981]
[1756729912376,13.59559401,200.01,199.96,4.31318228]
[1756729912667,3.59318228,200.02,199.97,0.72]
[1756729912868,3.35788695,200.01,199.98,0.72]
[1756729913087,3.59318228,200.02,199.98,0.72]
[1756729913298,3.35788515,200.01,199.98,0.72]
[1756729913473,3.59318228,200.02,199.98,0.72]
[1756729913668,3.59318228,199.99,199.95,5.12118981]
[1756729914177,4.29318228,199.99,199.95,5.12118981]
[1756729914886,4.29318228,199.99,199.95,5.84118981]
[1756729915088,3.59318228,199.99,199.95,5.84118981]
[1756729915290,3.59318228,200.0,199.95,5.84118981]
[1756729915497,3.59318228,200.0,199.95,5.12118981]
[1756729915665,13.59559401,200.01,199.96,4.8132823]
[1756729915870,29.59318228,200.05,200.0,3.59318228]
[1756729916079,3.35775274,200.04,200.02,3.59318228]
[1756729916275,17.18877629,200.07,200.03,0.72]
[1756729916495,3.35677545,200.06,200.03,0.72]
[1756729916675,17.18877629,200.07,200.03,0.72]
[1756729916987,3.35677545,200.06,200.04,4.99900019]
[1756729917188,17.18877629,200.07,200.04,4.99900019]
[1756729917384,3.35677507,200.06,200.04,4.99900019]
[1756729917585,21.24493504,200.05,199.99,64.84]
[1756729917791,3.59318228,200.03,200.0,3.7012609]
[1756729917992,3.59318228,200.03,200.01,3.7012609]
[1756729918219,133.9,200.07,200.02,4.4212609]
[1756729918501,138.19318228,200.07,200.03,42.5612609]
[1756729918794,137.49318228,200.07,200.04,3.7012609]
[1756729919002,3.59318228,200.08,200.05,3.7012609]
[1756729919317,3.35536104,200.07,200.06,8.69976134]
[1756729919486,3.35536104,200.07,200.06,9.41976134]
[1756729919889,3.35536104,200.07,200.06,8.69783077]
[1756729920281,0.03,200.09,200.06,9.41783077]
[1756729920481,0.03,200.09,200.07,4.41933033]
[1756729920705,0.03,200.09,200.08,3.69933033]
[1756729920891,3.3843609,200.09,200.08,3.69933033]
[1756729921083,3.3843609,200.09,200.08,9.41733112]
[1756729921607,0.03,200.09,200.08,8.69733112]
[1756729922519,17.91877629,200.09,200.08,3.69666808]
[1756729922686,21.27221291,200.09,200.08,3.69666808]
[1756729923486,20.57221291,200.09,200.08,3.69666808]
[1756729924089,6.9766189,200.09,200.08,3.69666808]
[1756729924878,6.9766189,200.09,200.08,8.69466887]
[1756729925085,3.38343662,200.09,200.08,8.69466887]
[1756729925523,7.6466189,200.09,200.08,3.69666808]
[1756729925695,21.24221291,200.09,200.08,3.69666808]
[1756729926584,21.38437448,200.09,200.08,3.69666808]
[1756729926789,25.58103469,200.09,200.08,3.69666808]
[1756729927422,13.59559401,200.05,199.99,5.00019939]
[1756729927600,3.59318228,200.0,199.98,5.00043287]
[1756729927788,3.59318228,199.99,199.98,5.00043287]
[1756729928108,3.59318228,199.99,199.95,0.82]
[1756729928489,3.59318228,199.98,199.96,5.0010002]
[1756729929114,3.59318228,199.99,199.96,5.0010002]
[1756729931707,3.59318228,199.98,199.96,5.0010002]
[1756729932111,3.59318228,199.98,199.95,0.12]
[1756729932112,4.26318228,199.97,199.95,0.12]
[1756729932297,3.59318228,199.96,199.95,0.12]
[1756729932495,4.26318228,199.96,199.95,0.12]
[1756729932695,3.59318228,199.96,199.95,0.12]
[1756729933295,3.59318228,199.97,199.95,5.12115089]
[1756729933498,17.18877629,199.98,199.95,5.82115089]
[1756729933893,17.18877629,199.98,199.95,5.12115089]
[1756729935223,3.59318228,199.99,199.96,0.7]
[1756729935426,0.14216157,200.04,199.97,0.7]
[1756729935427,3.59318228,200.0,199.97,0.7]
[1756729935714,3.59318228,199.99,199.95,0.12]
[1756729936098,3.59318228,199.99,199.95,0.82]
[1756729936500,3.59318228,199.99,199.96,5.0010002]
[1756729936922,26.0,200.03,199.95,5.12117539]
[1756729936923,3.59318228,199.97,199.95,5.12117539]
[1756729937118,3.59318228,199.96,199.95,0.12]
[1756729937612,3.59318228,199.97,199.95,5.12125031]
[1756729937817,3.59318228,199.98,199.95,5.12125031]
[1756729938021,3.59318228,199.97,199.95,5.12125031]
[1756729938209,13.59559401,199.99,199.95,5.12125031]
[1756729938531,137.49318228,200.01,199.96,4.29318228]
[1756729938709,6.95370482,200.0,199.96,0.7]
[1756729938901,137.49318228,200.01,199.97,0.7]
[1756729939106,133.9,200.01,199.98,0.7]
[1756729939706,13.59559401,200.05,199.99,5.70025001]
[1756729939924,3.36028825,200.04,200.0,4.29318228]
[1756729940107,4.26318228,200.06,200.01,0.7]
[1756729940422,0.03,200.09,200.02,1.19995]
[1756729940597,3.35938679,200.08,200.05,3.59318228]
[1756729940805,3.35938679,200.07,200.05,4.29318228]
[1756729941034,0.03,200.09,200.05,4.29318228]
[1756729941239,3.3593757,200.08,200.05,4.29318228]
[1756729941534,0.03,200.09,200.05,4.29318228]
[1756729941714,0.03,200.08,200.06,4.99850044]
[1756729941917,0.03,200.08,200.06,5.69850044]
[1756729942526,0.03,200.08,200.07,0.7]
[1756729943127,0.03,200.08,200.06,44.41835048]
[1756729943326,0.03,200.08,200.07,0.7]
[1756729943837,0.03,200.08,200.07,5.69825061]
[1756729944036,0.03,200.08,200.07,4.99825061]
[1756729945645,0.03,200.08,200.06,4.99850044]
[1756729949028,0.03,200.08,200.07,0.49982506]
[1756729949250,0.00766131,200.08,200.07,4.79300734]
[1756729950127,0.03,200.11,200.07,8.48519207]
[1756729950327,0.03,200.11,200.08,0.7]
[1756729950551,0.03,200.11,200.09,42.57202635]
[1756729950743,0.03,200.11,200.1,3.69202635]
[1756729950957,0.03,200.11,200.1,8.68952759]
[1756729951130,0.03,200.11,200.1,47.56952759]
[1756729951326,0.03,200.11,200.1,48.26952759]
[1756729951651,0.03,200.11,200.1,51.86270987]
[1756729951828,0.03,200.11,200.1,52.36245999]
[1756729952028,0.03,200.11,200.1,48.76927771]
[1756729952233,0.03,200.11,200.1,52.36245999]
[1756729952851,0.03,200.11,200.1,48.06927771]
[1756729954257,0.03,200.11,200.1,48.76927771]
[1756729956740,0.03,200.11,200.1,52.36245999]
[1756729956935,0.00766405,200.11,200.1,52.36245999]
[1756729957350,0.00766405,200.11,200.1,52.35578327]
[1756729959237,0.00262504,200.14,200.1,64.84953639]